fUSD/lending_fUSD_20240214
["ID","MTS","AMOUNT","RATE_DAILY","PERIOD"]
[314045848,1707945099318,-1848.23,0.0004,7]
[314045849,1707945099327,-587.47,0.0004,7]
[314045850,1707945099336,-1168.36,0.0004,7]
[314045851,1707945099346,-2233.44,0.0004,7]
[314045852,1707945099355,-500.0,0.0004,7]
[314045853,1707945099364,-983.47,0.0004,7]
[314045854,1707945099373,-580.91,0.0004,7]
[314045855,1707945099382,-826.29,0.0004,7]
[314045856,1707945099391,-972.52,0.0004,7]
[314045857,1707945099401,-898.19,0.0004,7]
[314045858,1707945099410,-503.91,0.0004,7]
[314045859,1707945099419,-2032.9,0.0004,7]
[314045860,1707945099428,-500.0,0.0004,7]
[314045861,1707945099437,-500.0,0.0004,7]
[314045862,1707945099446,-647.49,0.0004,7]
[314045863,1707945099456,-551.52,0.0004,7]
[314045864,1707945099465,-778.33,0.0004,7]
[314045865,1707945099475,-500.0,0.0004,7]
[314045866,1707945099484,-7693.98,0.0004,7]
[314045867,1707945099493,-500.0,0.0004,7]
[314045868,1707945099502,-3552.29,0.0004,7]
[314045869,1707945099512,-630.27,0.0004,7]
[314045870,1707945099521,-3310.79,0.0004,7]
[314045871,1707945099530,-569.11,0.0004,7]
[314045872,1707945099539,-500.0,0.0004,7]
[314045873,1707945099548,-500.0,0.0004,7]
[314045874,1707945099558,-1313.58,0.0004,7]
[314045875,1707945099568,-1815.74,0.0004,5]
[314045876,1707945099577,-3000.0,0.0004001,41]
[314045877,1707945099588,-500.0,0.0004002,2]
[314045878,1707945099597,-5477.23002,0.0004002,41]
[314045879,1707945099606,-333.021521,0.00040048,21]
[314045880,1707945099616,-309.021519,0.00040048,19]
[314045881,1707945099627,-1923.0,0.00040066,20]
[314045882,1707945099638,-396.0,0.00040066,20]
[314045883,1707945099649,-155.0,0.00040097,2]
[314045884,1707945099658,-151.021521,0.00040148,21]
[314045885,1707945099668,-333.02152,0.00040148,20]
[314045886,1707945099678,-347.36,0.00040165,2]
[314045887,1707945099688,-500.0,0.00040166,2]
[314045888,1707945099698,-150.28,0.00040183,2]
[314045889,1707945099709,-386.728906,0.000402,2]
[314045890,1707945099719,-500.0,0.0004024,21]
[314045891,1707945099728,-424.0,0.00040244,7]
[314045892,1707945099737,-151.021521,0.00040248,21]
[314045893,1707945099746,-333.02152,0.00040248,22]
[314045894,1707945099755,-556.75,0.00040273,7]
[314045895,1707945099764,-586.75,0.00040273,7]
[314045896,1707945099773,-799.09,0.00040273,7]
[314045897,1707945099782,-899.57,0.00040273,7]
[314045898,1707945099791,-2544.37,0.00040273,7]
[314045899,1707945099801,-647.67,0.00040273,7]
[314045900,1707945099811,-558.18,0.00040273,7]
[314045901,1707945099820,-694.58,0.00040273,7]
[314045902,1707945099830,-1144.53,0.00040273,7]
[314045903,1707945099839,-500.0,0.00040273,7]
[314045904,1707945099848,-500.0,0.00040273,7]
[314045905,1707945099857,-500.0,0.00040273,7]
[314045906,1707945099866,-3424.69,0.00040273,7]
[314045907,1707945099874,-818.43,0.00040273,7]
[314045908,1707945099884,-503.92,0.00040273,7]
[314045909,1707945099894,-5392.04,0.00040273,7]
[314045910,1707945099904,-906.19,0.00040273,7]
[314045911,1707945099915,-549.23,0.00040273,7]
[314045912,1707945099926,-381.68389274,0.00040273,7]
[314045913,1707945099937,-822.06,0.00040273,7]
[314045914,1707945099947,-500.0,0.00040273,7]
[314045915,1707945099961,-3341.45,0.00040273,7]
[314045916,1707945099971,-677.12,0.00040273,7]
[314045917,1707945099981,-1761.82,0.00040273,7]
[314045918,1707945099992,-609.74,0.00040273,7]
[314045919,1707945100002,-500.0,0.00040273,7]
[314045920,1707945100011,-802.92,0.00040273,7]
[314045921,1707945100020,-13582.07,0.00040273,7]
[314045922,1707945100033,-500.0,0.00040273,7]
[314045923,1707945100043,-953.89,0.00040273,7]
[314045924,1707945100052,-500.0,0.00040273,7]
[314045925,1707945100062,-6234.22,0.00040273,7]
[314045926,1707945100071,-586.78,0.00040273,7]
[314045927,1707945100081,-1606.08,0.00040273,7]
[314045928,1707945100090,-296.64,0.00040273,7]
[314045929,1707945100099,-595.12,0.00040273,7]
[314045930,1707945100140,-500.0,0.00040273,7]
[314045931,1707945100150,-1047.58,0.00040273,7]
[314045932,1707945100159,-681.83,0.00040273,7]
[314045933,1707945100168,-515.63,0.00040273,7]
[314045934,1707945100177,-1810.87,0.00040273,7]
[314045935,1707945100187,-805.31,0.00040273,7]
[314045936,1707945100198,-603.11,0.00040273,7]
[314045937,1707945100210,-540.47902748,0.00040273,7]
[314045938,1707945100219,-513.07,0.00040273,7]
[314045939,1707945100229,-500.0,0.00040273,7]
[314045940,1707945100238,-841.02,0.00040273,7]
[314045941,1707945100248,-780.8,0.00040273,7]
[314045942,1707945100258,-662.19,0.00040273,7]
[314045943,1707945100268,-1486.64,0.00040273,7]
[314045944,1707945100278,-2858.66,0.00040273,7]
[314045945,1707945100287,-590.33,0.00040273,7]
[314045946,1707945100295,-786.93,0.00040273,7]
[314045947,1707945100305,-577.68,0.00040273,7]
[314045948,1707945100315,-1000.0,0.00040273,120]
[314045949,1707945100454,-3628.12,0.00040273,7]
[314045950,1707945100464,-4757.12,0.00040273,7]
[314045951,1707945100474,-1991.03,0.00040273,7]
[314045952,1707945100483,-598.4,0.00040273,7]
[314045953,1707945100492,-612.33,0.00040273,2]
[314045954,1707945100501,-500.0,0.00040273,7]
[314045955,1707945100510,-617.82,0.00040273,7]
[314045956,1707945100519,-2139.36,0.00040273,7]
[314045957,1707945100529,-502.43,0.00040273,7]
[314045958,1707945100540,-685.44,0.00040273,7]
[314045959,1707945100550,-807.41,0.00040273,7]
[314045960,1707945100560,-730.2,0.00040273,7]
[314045961,1707945100569,-2211.07,0.00040273,7]
[314045962,1707945100578,-500.0,0.00040273,7]
[314045963,1707945100589,-500.0,0.00040273,7]
[314045964,1707945100599,-711.33,0.00040273,7]
[314045965,1707945100609,-743.99,0.00040273,7]
[314045966,1707945100617,-2294.91,0.00040273,7]
[314045967,1707945100626,-2043.37,0.00040273,7]
[314045968,1707945100635,-500.0,0.00040273,7]
[314045969,1707945100644,-594.55,0.00040273,7]
[314045970,1707945100654,-6637.56,0.00040273,7]
[314045971,1707945100662,-500.0,0.00040273,7]
[314045972,1707945100671,-500.0,0.00040273,7]
[314045973,1707945100681,-1343.45,0.00040273,7]
[314045974,1707945100689,-595.97,0.00040273,7]
[314045975,1707945100699,-1831.02,0.00040273,7]
[314045976,1707945100710,-1215.55,0.00040273,7]
[314045977,1707945100720,-1575.34,0.00040273,7]
[314045978,1707945100731,-1240.3,0.00040273,7]
[314045979,1707945100742,-1949.84,0.00040273,7]
[314045980,1707945100753,-500.0,0.00040273,7]
[314045981,1707945100764,-500.0,0.00040273,7]
[314045982,1707945100773,-1376.91,0.00040273,7]
[314045983,1707945100782,-1838.93,0.00040273,7]
[314045984,1707945100792,-1020.07,0.00040273,7]
[314045985,1707945100803,-1264.88,0.00040273,7]
[314045986,1707945100812,-286.55885102,0.00040273,7]
[314045987,1707945100822,-4521.24,0.00040273,7]
[314045988,1707945100833,-791.66,0.00040273,7]
[314045989,1707945100844,-4808.1,0.00040273,7]
[314045990,1707945100854,-1751.89,0.00040273,7]
[314045991,1707945100863,-660.03,0.00040273,7]
[314045992,1707945100873,-665.94,0.00040273,7]
[314045993,1707945100883,-720.52,0.00040273,7]
[314045994,1707945100892,-1028.68,0.00040273,7]
[314045995,1707945100902,-1411.1,0.00040273,7]
[314045996,1707945100911,-1101.95,0.00040273,7]
[314045997,1707945100920,-633.08,0.00040273,7]
[314045998,1707945100929,-679.4,0.00040273,7]
[314045999,1707945100938,-1588.43,0.00040273,7]
[314046000,1707945100951,-859.31,0.00040273,7]
[314046001,1707945100963,-570.05,0.00040273,7]
[314046002,1707945100972,-2455.03,0.00040273,7]
[314046003,1707945100981,-6828.37,0.00040273,7]
[314046004,1707945100991,-500.0,0.00040273,7]
[314046005,1707945101000,-7718.39,0.00040273,7]
[314046006,1707945101010,-500.0,0.00040273,7]
[314046007,1707945101019,-500.0,0.00040273,7]
[314046008,1707945101030,-730.4,0.00040273,7]
[314046009,1707945101039,-1547.02,0.00040273,7]
[314046010,1707945101049,-1211.6,0.00040273,7]
[314046011,1707945101058,-592.22,0.00040273,7]
[314046012,1707945101067,-1187.29,0.00040273,7]
[314046013,1707945101077,-6862.69,0.00040273,7]
[314046014,1707945101086,-500.0,0.00040273,7]
[314046015,1707945101096,-1752.35,0.00040273,7]
[314046016,1707945101106,-565.71,0.00040273,7]
[314046017,1707945101115,-551.53,0.00040273,7]
[314046018,1707945101125,-500.0,0.00040273,7]
[314046019,1707945101134,-828.25,0.00040273,7]
[314046020,1707945101143,-865.42,0.00040273,7]
[314046021,1707945101152,-5366.99,0.00040273,7]
[314046022,1707945101162,-1003.79,0.00040273,7]
[314046023,1707945101171,-1623.54,0.00040273,7]
[314046024,1707945101180,-1200.22,0.00040273,7]
[314046025,1707945101190,-558.49,0.00040273,7]
[314046026,1707945101199,-500.0,0.00040273,7]
[314046027,1707945101208,-1014.56,0.00040273,7]
[314046028,1707945101217,-995.34,0.00040273,7]
[314046029,1707945101226,-746.35,0.00040273,7]
[314046030,1707945101235,-1044.44,0.00040273,7]
[314046031,1707945101244,-501.11,0.00040273,7]
[314046032,1707945101254,-1716.87,0.00040273,7]
[314046033,1707945101264,-1848.23,0.00040273,7]
[314046034,1707945101273,-587.47,0.00040273,7]
[314046035,1707945101283,-1168.36,0.00040273,7]
[314046036,1707945101292,-2233.44,0.00040273,7]
[314046037,1707945101302,-500.0,0.00040273,7]
[314046038,1707945101311,-983.47,0.00040273,7]
[314046039,1707945101320,-580.91,0.00040273,7]
[314046040,1707945101330,-826.29,0.00040273,7]
[314046041,1707945101339,-972.52,0.00040273,7]
[314046042,1707945101348,-898.19,0.00040273,7]
[314046043,1707945101358,-2032.9,0.00040273,7]
[314046044,1707945101367,-500.0,0.00040273,7]
[314046045,1707945101376,-245.0,0.00040273,7]
[314046046,1707945101385,-647.49,0.00040273,7]
[314046047,1707945101395,-551.52,0.00040273,7]
[314046048,1707945101403,-778.33,0.00040273,7]
[314046049,1707945101412,-500.0,0.00040273,7]
[314046050,1707945101421,-7693.98,0.00040273,7]
[314046051,1707945101431,-500.0,0.00040273,7]
[314046052,1707945101440,-3552.29,0.00040273,7]
[314046053,1707945101449,-630.27,0.00040273,7]
[314046054,1707945101457,-3310.79,0.00040273,7]
[314046055,1707945101466,-569.11,0.00040273,7]
[314046056,1707945101475,-455.93591077,0.00040273,7]
[314046057,1707945101484,-1313.58,0.00040273,7]
[314046058,1707945101494,-3250.6,0.0004029,2]
[314046059,1707945101502,-171.0,0.000403,42]
[314046060,1707945101511,-200.0,0.000403,14]
[314046061,1707945101520,-500.0,0.00040313,2]
[314046062,1707945101529,-151.021422,0.00040348,22]
[314046063,1707945101538,-333.02152,0.00040348,21]
[314046064,1707945101547,-882.23549408,0.00040359,7]
[314046065,1707945101556,-347.36,0.00040359,2]
[314046066,1707945101565,-5160.35758194,0.000404,7]
[314046067,1707945101574,-2348.35,0.000404,7]
[314046068,1707945101583,-2404.89,0.000404,7]
[314046069,1707945101592,-1000.0,0.000404,3]
[314046070,1707945101600,-1000.0,0.00040436,10]
[314046071,1707945101609,-1000.0,0.00040436,10]
[314046072,1707945101619,-23751.37045588,0.0004044,7]
[314046073,1707945101629,-171.021522,0.00040448,22]
[314046074,1707945101640,-1923.0,0.00040458,20]
[314046075,1707945101649,-396.0,0.00040458,20]
[314046076,1707945101658,-500.0,0.0004046,2]
[314046077,1707945101667,-436.0,0.000405,4]
[314046078,1707945101676,-947.15,0.000405,7]
[314046079,1707945101686,-556.75,0.00040547,7]
[314046080,1707945101697,-586.75,0.00040547,7]
[314046081,1707945101708,-799.09,0.00040547,7]
[314046082,1707945101719,-899.57,0.00040547,7]
[314046083,1707945101730,-2544.37,0.00040547,7]
[314046084,1707945101741,-647.67,0.00040547,7]
[314046085,1707945101753,-558.18,0.00040547,7]
[314046086,1707945101766,-694.58,0.00040547,7]
[314046087,1707945101776,-1144.53,0.00040547,7]
[314046088,1707945101787,-500.0,0.00040547,7]
[314046089,1707945101796,-173.7254382,0.00040547,7]
[314046090,1707945101805,-3424.69,0.00040547,7]
[314046091,1707945101814,-818.43,0.00040547,7]
[314046092,1707945101825,-503.92,0.00040547,7]
[314046093,1707945101834,-5392.04,0.00040547,7]
[314046094,1707945101844,-906.19,0.00040547,7]
[314046095,1707945101854,-549.23,0.00040547,7]
[314046096,1707945101863,-822.06,0.00040547,7]
[314046097,1707945101873,-500.0,0.00040547,7]
[314046098,1707945101882,-3341.45,0.00040547,7]
[314046099,1707945101893,-677.12,0.00040547,7]
[314046100,1707945101903,-366.34845924,0.00040547,7]
[314046101,1707945101912,-1761.82,0.00040547,7]
[314046102,1707945101922,-609.74,0.00040547,7]
[314046103,1707945101931,-483.9106173,0.00040547,7]
[314046104,1707945101940,-802.92,0.00040547,7]
[314046105,1707945101951,-13582.07,0.00040547,7]
[314046106,1707945101962,-466.45669285,0.00040547,7]
[314046107,1707945101971,-953.89,0.00040547,7]
[314046108,1707945101982,-500.0,0.00040547,7]
[314046109,1707945101991,-6234.22,0.00040547,7]
[314046110,1707945102000,-586.78,0.00040547,7]
[314046111,1707945102009,-1606.08,0.00040547,7]
[314046112,1707945102018,-595.12,0.00040547,7]
[314046113,1707945102027,-500.0,0.00040547,7]
[314046114,1707945102040,-1047.58,0.00040547,7]
[314046115,1707945102050,-681.83,0.00040547,7]
[314046116,1707945102059,-515.63,0.00040547,7]
[314046117,1707945102068,-1810.87,0.00040547,7]
[314046118,1707945102077,-805.31,0.00040547,7]
[314046119,1707945102086,-603.11,0.00040547,7]
[314046120,1707945102095,-513.07,0.00040547,7]
[314046121,1707945102104,-500.0,0.00040547,7]
[314046122,1707945102113,-841.02,0.00040547,7]
[314046123,1707945102122,-780.8,0.00040547,7]
[314046124,1707945102131,-662.19,0.00040547,7]
[314046125,1707945102141,-1486.64,0.00040547,7]
[314046126,1707945102151,-2858.66,0.00040547,7]
[314046127,1707945102160,-590.33,0.00040547,7]
[314046128,1707945102170,-786.93,0.00040547,7]
[314046129,1707945102179,-1041.2,0.00040547,120]
[314046130,1707945102188,-577.68,0.00040547,7]
[314046131,1707945102198,-3628.12,0.00040547,7]
[314046132,1707945102208,-4757.12,0.00040547,7]
[314046133,1707945102217,-1991.03,0.00040547,7]
[314046134,1707945102226,-598.4,0.00040547,7]
[314046135,1707945102236,-612.33,0.00040547,2]
[314046136,1707945102246,-500.0,0.00040547,7]
[314046137,1707945102255,-617.82,0.00040547,7]
[314046138,1707945102266,-2139.36,0.00040547,7]
[314046139,1707945102275,-502.43,0.00040547,7]
[314046140,1707945102285,-685.44,0.00040547,7]
[314046141,1707945102294,-807.41,0.00040547,7]
[314046142,1707945102303,-730.2,0.00040547,7]
[314046143,1707945102312,-2211.07,0.00040547,7]
[314046144,1707945102321,-500.0,0.00040547,7]
[314046145,1707945102330,-160.59968679,0.00040547,7]
[314046146,1707945102339,-711.33,0.00040547,7]
[314046147,1707945102349,-743.99,0.00040547,7]
[314046148,1707945102358,-2294.91,0.00040547,7]
[314046149,1707945102367,-2043.37,0.00040547,7]
[314046150,1707945102376,-500.0,0.00040547,7]
[314046151,1707945102385,-594.55,0.00040547,7]
[314046152,1707945102395,-6637.56,0.00040547,7]
[314046153,1707945102404,-500.0,0.00040547,7]
[314046154,1707945102413,-500.0,0.00040547,7]
[314046155,1707945102422,-1343.45,0.00040547,7]
[314046156,1707945102431,-595.97,0.00040547,7]
[314046157,1707945102440,-1831.02,0.00040547,7]
[314046158,1707945102449,-1215.55,0.00040547,7]
[314046159,1707945102457,-1575.34,0.00040547,7]
[314046160,1707945102466,-431.00542878,0.00040547,7]
[314046161,1707945102490,-809.29457122,0.00040547,7]
[314046162,1707945102499,-1949.84,0.00040547,7]
[314046163,1707945102508,-572.35171625,0.00040547,7]
[314046164,1707945102518,-431.154766,0.00040547,7]
[314046165,1707945102527,-1376.91,0.00040547,7]
[314046166,1707945102536,-1838.93,0.00040547,7]
[314046167,1707945102545,-1020.07,0.00040547,7]
[314046168,1707945102555,-1264.88,0.00040547,7]
[314046169,1707945102564,-4521.24,0.00040547,7]
[314046170,1707945102573,-791.66,0.00040547,7]
[314046171,1707945102582,-4128.97053582,0.00040547,7]
[314046172,1707945102595,-679.12946418,0.00040547,7]
[314046173,1707945102604,-1751.89,0.00040547,7]
[314046174,1707945102613,-660.03,0.00040547,7]
[314046175,1707945102622,-560.40987747,0.00040547,7]
[314046176,1707945102634,-105.53012253,0.00040547,7]
[314046177,1707945102643,-720.52,0.00040547,7]
[314046178,1707945102653,-1028.68,0.00040547,7]
[314046179,1707945102662,-985.30089737,0.00040547,7]
[314046180,1707945102674,-425.79910263,0.00040547,7]
[314046181,1707945102683,-1101.95,0.00040547,7]
[314046182,1707945102692,-633.08,0.00040547,7]
[314046183,1707945102701,-481.75206551,0.00040547,7]
[314046184,1707945102712,-197.64793449,0.00040547,7]
[314046185,1707945102722,-1588.43,0.00040547,7]
[314046186,1707945102732,-859.31,0.00040547,7]
[314046187,1707945102741,-570.05,0.00040547,7]
[314046188,1707945102750,-2455.03,0.00040547,7]
[314046189,1707945102759,-2196.66013707,0.00040547,7]
[314046190,1707945102770,-373.28877132,0.00040547,7]
[314046191,1707945102781,-1703.70044766,0.00040547,7]
[314046192,1707945102800,-500.0,0.00040273,7]
[314046193,1707945102810,-2554.72064395,0.00040547,7]
[314046194,1707945102819,-500.0,0.00040547,7]
[314046195,1707945102828,-500.0,0.00040547,7]
[314046196,1707945102838,-7718.39,0.00040547,7]
[314046197,1707945102848,-500.0,0.00040547,7]
[314046198,1707945102858,-730.4,0.00040547,7]
[314046199,1707945102868,-1547.02,0.00040547,7]
[314046200,1707945102879,-21.4118987,0.00040547,7]
[314046201,1707945103606,-500.0,0.0003493,2]
[314046202,1707945103616,-500.0,0.0003493,2]
[314046203,1707945103625,-500.0,0.0003493,2]
[314046204,1707945103634,-500.0,0.0003493,2]
[314046205,1707945103644,-500.0,0.0003493,2]
[314046206,1707945103653,-500.0,0.0003493,2]
[314046207,1707945103662,-500.0,0.0003493,2]
[314046208,1707945103671,-500.0,0.0003493,2]
[314046209,1707945103680,-500.0,0.0003493,2]
[314046210,1707945103689,-525.47680591,0.00035616,7]
[314046211,1707945103697,-500.0,0.00035616,7]
[314046212,1707945103706,-314.8,0.00035616,7]
[314046213,1707945103715,-2184.86,0.00035616,7]
[314046214,1707945103724,-18721.38671526,0.00035839,2]
[314046215,1707945103733,-2184.86,0.0003589,7]
[314046216,1707945103742,-2184.86,0.00036164,7]
[314046217,1707945103752,-2184.86,0.00036438,7]
[314046218,1707945103761,-1190.1881013,0.00040547,7]
[314046219,1707945103770,-592.22,0.00040547,7]
[314046220,1707945103779,-1187.29,0.00040547,7]
[314046221,1707945103788,-6862.69,0.00040547,7]
[314046222,1707945103797,-500.0,0.00040547,7]
[314046223,1707945103806,-1752.35,0.00040547,7]
[314046224,1707945103815,-565.71,0.00040547,7]
[314046225,1707945103824,-551.53,0.00040547,7]
[314046226,1707945103833,-500.0,0.00040547,7]
[314046227,1707945103842,-828.25,0.00040547,7]
[314046228,1707945103851,-865.42,0.00040547,7]
[314046229,1707945103860,-5366.99,0.00040547,7]
[314046230,1707945103870,-1003.79,0.00040547,7]
[314046231,1707945103879,-1623.54,0.00040547,7]
[314046232,1707945103888,-1200.22,0.00040547,7]
[314046233,1707945103897,-558.49,0.00040547,7]
[314046234,1707945103906,-500.0,0.00040547,7]
[314046235,1707945103914,-1014.56,0.00040547,7]
[314046236,1707945103923,-995.34,0.00040547,7]
[314046237,1707945103932,-746.35,0.00040547,7]
[314046238,1707945103941,-1044.44,0.00040547,7]
[314046239,1707945103954,-501.11,0.00040547,7]
[314046240,1707945103964,-1716.87,0.00040547,7]
[314046241,1707945103973,-1848.23,0.00040547,7]
[314046242,1707945103982,-587.47,0.00040547,7]
[314046243,1707945103992,-1168.36,0.00040547,7]
[314046244,1707945104001,-2233.44,0.00040547,7]
[314046245,1707945104010,-358.08,0.00040547,7]
[314046246,1707945104019,-983.47,0.00040547,7]
[314046247,1707945104029,-580.91,0.00040547,7]
[314046248,1707945104038,-826.29,0.00040547,7]
[314046249,1707945104047,-972.52,0.00040547,7]
[314046250,1707945104055,-898.19,0.00040547,7]
[314046251,1707945104064,-2032.9,0.00040547,7]
[314046252,1707945104073,-470.08775449,0.00040547,7]
[314046253,1707945104082,-647.49,0.00040547,7]
[314046254,1707945104091,-551.52,0.00040547,7]
[314046255,1707945104101,-778.33,0.00040547,7]
[314046256,1707945104110,-437.12023029,0.00040547,7]
[314046257,1707945104119,-7693.98,0.00040547,7]
[314046258,1707945104130,-500.0,0.00040547,7]
[314046259,1707945104139,-3552.29,0.00040547,7]
[314046260,1707945104153,-630.27,0.00040547,7]
[314046261,1707945104162,-3310.79,0.00040547,7]
[314046262,1707945104172,-569.11,0.00040547,7]
[314046263,1707945104181,-1313.58,0.00040547,7]
[314046264,1707945104190,-500.0,0.00040547,7]
[314046265,1707945104357,-500.0,0.000406,15]
[314046266,1707945104371,-500.0,0.00040607,2]
[314046267,1707945104380,-957.87,0.00040733,2]
[314046268,1707945104389,-500.0,0.00040753,2]
[314046269,1707945104398,-500.0,0.00040788,21]
[314046270,1707945104407,-556.75,0.00040821,7]
[314046271,1707945104417,-586.75,0.00040821,7]
[314046272,1707945104425,-799.09,0.00040821,7]
[314046273,1707945104434,-899.57,0.00040821,7]
[314046274,1707945104444,-2544.37,0.00040821,7]
[314046275,1707945104454,-647.67,0.00040821,7]
[314046276,1707945104463,-558.18,0.00040821,7]
[314046277,1707945104472,-694.58,0.00040821,7]
[314046278,1707945104481,-1144.53,0.00040821,7]
[314046279,1707945104490,-500.0,0.00040821,7]
[314046280,1707945104499,-3424.69,0.00040821,7]
[314046281,1707945104508,-818.43,0.00040821,7]
[314046282,1707945104517,-503.92,0.00040821,7]
[314046283,1707945104526,-5392.04,0.00040821,7]
[314046284,1707945104536,-549.23,0.00040821,7]
[314046285,1707945104545,-822.06,0.00040821,7]
[314046286,1707945104554,-500.0,0.00040821,7]
[314046287,1707945104563,-3341.45,0.00040821,7]
[314046288,1707945104572,-677.12,0.00040821,7]
[314046289,1707945104582,-1761.82,0.00040821,7]
[314046290,1707945104590,-609.74,0.00040821,7]
[314046291,1707945104600,-802.92,0.00040821,7]
[314046292,1707945104609,-13582.07,0.00040821,7]
[314046293,1707945104618,-953.89,0.00040821,7]
[314046294,1707945104627,-555.29084497,0.00040821,7]
[314046295,1707945104636,-6234.22,0.00040821,7]
[314046296,1707945104646,-586.78,0.00040821,7]
[314046297,1707945104655,-1606.08,0.00040821,7]
[314046298,1707945104664,-595.12,0.00040821,7]
[314046299,1707945104673,-500.0,0.00040821,7]
[314046300,1707945104682,-1047.58,0.00040821,7]
[314046301,1707945104691,-681.83,0.00040821,7]
[314046302,1707945104699,-515.63,0.00040821,7]
[314046303,1707945104708,-1810.87,0.00040821,7]
[314046304,1707945104717,-805.31,0.00040821,7]
[314046305,1707945104726,-603.11,0.00040821,7]
[314046306,1707945104735,-513.07,0.00040821,7]
[314046307,1707945104744,-277.47889269,0.00040821,7]
[314046308,1707945104753,-841.02,0.00040821,7]
[314046309,1707945104762,-780.8,0.00040821,7]
[314046310,1707945104771,-662.19,0.00040821,7]
[314046311,1707945104780,-1486.64,0.00040821,7]
[314046312,1707945104789,-2858.66,0.00040821,7]
[314046313,1707945104798,-590.33,0.00040821,7]
[314046314,1707945104807,-786.93,0.00040821,7]
[314046315,1707945104816,-577.68,0.00040821,7]
[314046316,1707945104826,-3628.12,0.00040821,7]
[314046317,1707945104835,-4757.12,0.00040821,7]
[314046318,1707945104844,-598.4,0.00040821,7]
[314046319,1707945104854,-612.33,0.00040821,2]
[314046320,1707945104863,-500.0,0.00040821,7]
[314046321,1707945104872,-617.82,0.00040821,7]
[314046322,1707945104881,-2139.36,0.00040821,7]
[314046323,1707945104890,-502.43,0.00040821,7]
[314046324,1707945104899,-685.44,0.00040821,7]
[314046325,1707945104908,-807.41,0.00040821,7]
[314046326,1707945104917,-730.2,0.00040821,7]
[314046327,1707945104927,-2211.07,0.00040821,7]
[314046328,1707945104936,-568.77432654,0.00040821,7]
[314046329,1707945104945,-711.33,0.00040821,7]
[314046330,1707945104959,-743.99,0.00040821,7]
[314046331,1707945104967,-2294.91,0.00040821,7]
[314046332,1707945104977,-2043.37,0.00040821,7]
[314046333,1707945104986,-500.0,0.00040821,7]
[314046334,1707945104995,-594.55,0.00040821,7]
[314046335,1707945105004,-6637.56,0.00040821,7]
[314046336,1707945105013,-500.0,0.00040821,7]
[314046337,1707945105022,-500.0,0.00040821,7]
[314046338,1707945105034,-1343.45,0.00040821,7]
[314046339,1707945105043,-595.97,0.00040821,7]
[314046340,1707945105052,-1831.02,0.00040821,7]
[314046341,1707945105061,-1215.55,0.00040821,7]
[314046342,1707945105070,-1575.34,0.00040821,7]
[314046343,1707945105079,-1240.3,0.00040821,7]
[314046344,1707945105088,-1949.84,0.00040821,7]
[314046345,1707945105098,-1376.91,0.00040821,7]
[314046346,1707945105106,-1838.93,0.00040821,7]
[314046347,1707945105115,-1020.07,0.00040821,7]